Workbook

Sheet DONNEES
A1: Pseudo | B1: X | C1: Y
A2: 6gale | B2: 23 | C2: 110
A3: 7ace | B3: 22 | C3: 113
A4: adraste | B4: 3 | C4: 224
A5: alcapone | B5: 47 | C5: 73
A6: Alpin | B6: 28 | C6: 113
A7: Annihilator | B7: 22 | C7: 111
A8: antinua | B8: 46 | C8: 24
A9: artemusgordon | B9: 29 | C9: 111
A10: Asterixx | B10: 35 | C10: 66
A11: AupaBO | B11: 44 | C11: 21
A12: benrich4ard | B12: 15 | C12: 148
A13: bib59 | B13: 22 | C13: 51
A14: bladerunner | B14: 3 | C14: 82
A15: Buggol | B15: 48 | C15: 15
A16: chloe | B16: 29 | C16: 16
A17: coltinus | B17: 18 | C17: 151
A18: Crisdu13 | B18: 36 | C18: 120
A19: Dgeo | B19: 22 | C19: 130
A20: ecthelion | B20: 40 | C20: 19
A21: elermi | B21: 42 | C21: 41
A22: Eliot | B22: 18 | C22: 89
A23: Equinox | B23: 15 | C23: 244
A24: Eshana | B24: 42 | C24: 69
A25: etmg | B25: 41 | C25: 37
A26: fitzchevalerie | B26: 32 | C26: 16
A27: francotigre22 | B27: 21 | C27: 92
A28: g0llum | B28: 20 | C28: 137
A29: Giddum | B29: 12 | C29: 97
A30: gragou1er | B30: 12 | C30: 67
A31: Grimalkin | B31: 20 | C31: 84
A32: guigui73 | B32: 36 | C32: 84
A33: half | B33: 31 | C33: 108
A34: Hurin | B34: 27 | C34: 108
A35: IlikeFood | B35: 42 | C35: 6
A36: i-sork | B36: 32 | C36: 48
A37: JaH | B37: 4 | C37: 93
A38: kaka | B38: 4 | C38: 241
A39: kashim | B39: 12 | C39: 112
A40: Kelderoth | B40: 8 | C40: 92
A41: kero06 | B41: 44 | C41: 58
A42: kikouk | B42: 35 | C42: 135
A43: Laaw | B43: 38 | C43: 7
A44: le-rital | B44: 40 | C44: 38
A45: lexa2 | B45: 36 | C45: 149
A46: Lolth | B46: 45 | C46: 91
A47: lotto16 | B47: 29 | C47: 110
A48: magaly | B48: 46 | C48: 7
A49: Marvouk | B49: 27 | C49: 110
A50: maurice | B50: 4 | C50: 124
A51: messorbarbare | B51: 14 | C51: 144
A52: mima | B52: 19 | C52: 85
A53: muon | B53: 22 | C53: 92
A54: Natanx | B54: 18 | C54: 93
A55: NIMEO | B55: 19 | C55: 29
A56: Ninoune | B56: 7 | C56: 128
A57: obelix | B57: 18 | C57: 67
A58: patanbaz | B58: 46 | C58: 130
A59: PetitPoney | B59: 27 | C59: 150
A60: piew | B60: 17 | C60: 239
A61: Polak | B61: 44 | C61: 124
A62: Pololamagouille | B62: 39 | C62: 170
A63: popol | B63: 44 | C63: 93
A64: Purple_Pachyderm | B64: 42 | C64: 14
A65: quentinou38 | B65: 28 | C65: 162
A66: Riritus | B66: 35 | C66: 107
A67: Romton | B67: 8 | C67: 130
A68: ryuuk | B68: 26 | C68: 108
A69: Smoki | B69: 45 | C69: 14
A70: St.M | B70: 30 | C70: 143
A71: Struf | B71: 34 | C71: 24
A72: theodu33160 | B72: 24 | C72: 142
A73: tom78 | B73: 12 | C73: 122
A74: uzuma | B74: 46 | C74: 19
A75: VinZ7090 | B75: 14 | C75: 241
A76: winnyangelus | B76: 45 | C76: 8
A77: Wolftoes | B77: 38 | C77: 27
A78: Woodi_S | B78: 43 | C78: 83
A79: xcriyoda | B79: 32 | C79: 13
A80: Zarmi | B80: 10 | C80: 146
A81: zaroc | B81: 4 | C81: 50
A82: zeus | B82: 33 | C82: 93
A117: x | B117: 17 | C117: 250

Sheet GRAPHIQUE

Sheet Feuil3
A1: Hurin | B1: Alpin | C1: Marvouk | D1: Riritus | E1: Artémusgordon | J1: 7ace | K1: 6gale | L1: half | M1: annihilator | N1: ryuuk
A2: 88712 | B2: 2200000 | C2: 1076558 | D2: 1000000 | E2: 300000 | G2: 700000 | J2: 700000 | K2: 88712 | L2: 1000000 | M2: 800000 | N2: 1076558
B3: 2062306 | C3: 700000 | D3: 500000 | E3: 300000 | J3: 900000 | K3: 2200000 | L3: 500000 | M3: 1000000 | N3: 4275947
B4: 1000000 | C4: 800000 | D4: 261512 | E4: 800000 | J4: 1000000 | K4: 2062306 | L4: 261512 | M4: 1000000
C5: 800000 | E5: 1000000 | K5: 1000000 | L5: 700000
C6: 900000 | K6: 450000 | L6: 300000
C7: 1000000 | K7: 500000 | L7: 300000
C8: 1000000 | K8: 500000 | L8: 800000
C9: 4275947 | L9: 800000
C10: 1467468 | L10: 1467468
C11: 450000
C12: 500000
C13: 500000
A16: =SUM(A2:A15) -> 88712 | B16: =SUM(B2:B15) -> 5262306 | C16: =SUM(C2:C15) -> 13469973 | D16: =SUM(D2:D15) -> 1761512 | E16: 2400000 | I16: Total livré | J16: =SUM(J2:J15) -> 2600000 | K16: =SUM(K2:K15) -> 6801018 | L16: =SUM(L2:L15) -> 6128980 | M16: =SUM(M2:M15) -> 2800000 | N16: =SUM(N2:N15) -> 5352505 | O16: =SUM(O2:O15) -> 0
A17: 88712 | B17: 5262306 | C17: 16076558 | D17: 1761512 | E17: 2629867 | I17: Prévu | J17: 3833909 | K17: 7315783 | L17: 6128880 | M17: 3882988 | N17: 5352505
I18: Reste à recevoir | J18: =J17-J16 -> 1233909 | K18: =K17-K16 -> 514765 | L18: -100 | M18: 1082988 | N18: 0
A19: =A17-A16 -> 0 | B19: =B17-B16 -> 0 | C19: 2606585 | D19: 0 | E19: 229867
